bitfinex-derivatives/quotes_SOLF0:USTF0_20250309
["timestamp","ask_amount","ask_price","bid_price","bid_amount"]
[1741543999297,38.54,126.93,126.85,8.4702]
[1741543999505,38.54,126.93,126.85,12.406]
[1741543999700,38.54,126.93,126.86,52.24351733]
[1741543999907,0.05359387,126.9,126.88,0.0586974]
[1741544000105,38.54,126.94,126.88,0.0586974]
[1741544000305,38.54,126.94,126.86,52.24351733]
[1741544000501,25.5284,126.94,126.86,52.24351733]
[1741544000706,38.54,126.97,126.89,52.24351733]
[1741544001001,32.0349,126.97,126.92,52.24351733]
[1741544001308,134.28665365,127.08,126.95,52.24351733]
[1741544001503,39.91096933,127.09,126.98,52.24351733]
[1741544001808,2.923e-05,127.03,127.02,0.05616326]
[1741544002007,38.56,127.14,127.02,143.10319792]
[1741544002209,38.56,127.14,127.04,52.24351733]
[1741544003209,0.0496793,127.1,127.08,0.05827136]
[1741544003709,38.5896793,127.1,127.08,0.05827136]
[1741544003899,90.83319663,127.1,126.96,90.78351733]
[1741544004103,52.24351733,127.08,126.96,52.24351733]
[1741544005211,0.05980037,127.03,127.01,0.0521019]
[1741544005410,38.59980037,127.03,127.01,0.0521019]
[1741544005708,38.59493228,127.03,127.01,0.0521019]
[1741544006308,90.83844961,127.03,127.01,0.0521019]
[1741544007408,90.83844961,127.03,126.94,4.3039]
[1741544007611,4.0879,127.02,126.94,4.3039]
[1741544008411,90.78351733,127.03,126.94,4.3039]
[1741544008412,38.54,127.03,126.94,4.3039]
[1741544008612,0.05242447,126.99,126.97,0.05751366]
[1741544008906,38.54,127.03,126.97,0.05751366]
[1741544009414,38.54,127.03,127.01,7.8735]
[1741544009614,38.54,127.03,126.96,52.24351733]
[1741544009911,38.54,127.07,126.96,52.24351733]
[1741544010110,38.54,127.07,126.98,0.0560542]
[1741544010304,1.132e-05,127.01,126.99,52.24351733]
[1741544010508,38.54,127.1,127.0,4.2402]
[1741544010711,14.56446141,127.13,127.01,3.9716]
[1741544010910,38.54,127.12,127.01,3.9716]
[1741544011107,7.868,127.11,127.05,7.8713]
[1741544011307,38.54,127.12,127.01,3.9716]
[1741544011514,0.05596798,127.09,127.08,7.8696]
[1741544012010,7.8694,127.09,127.03,7.8723]
[1741544012214,7.8694,127.09,127.0,4.2402]
[1741544012408,38.54,127.11,127.0,4.2402]
[1741544012608,4.1609,127.1,127.0,4.2402]
[1741544013209,0.05892677,127.06,127.04,0.05414496]
[1741544013714,0.05892677,127.06,127.05,7.8713]
[1741544014114,3.9559,127.13,127.05,7.8713]
[1741544014322,38.52,127.12,127.03,38.52]
[1741544014616,3.9559,127.13,127.03,38.52]
[1741544014917,38.52,127.12,127.03,38.52]
[1741544015415,0.05797866,127.09,127.06,0.05075726]
[1741544015816,38.52,127.08,127.06,0.05075726]
[1741544016317,90.76351733,127.08,127.06,0.05075726]
[1741544016511,98.63341733,127.08,127.06,0.05075726]
[1741544016818,90.76351733,127.08,127.06,0.05075726]
[1741544017014,90.76351733,127.08,127.0,4.2402]
[1741544017218,7.8712,127.06,127.01,7.8736]
[1741544017611,7.8712,127.06,127.02,7.8731]
[1741544017612,52.24351733,127.06,127.02,7.8731]
[1741544018208,0.05836403,127.05,127.03,0.05316615]
[1741544018614,0.05836403,127.05,126.97,4.1224]
[1741544019108,52.24351733,127.11,127.0,52.29521077]
[1741544019314,38.52,127.1,127.01,3.9206]
[1741544019513,38.52,127.1,127.05,7.8713]
[1741544019712,38.52,127.1,127.01,3.9206]
[1741544019912,46.3888,127.1,127.05,7.8709]
[1741544020418,7.8702,127.08,127.06,0.0529088]
[1741544020815,0.04948001,127.09,127.06,0.0529088]
[1741544021018,52.24351733,127.08,126.97,196.1224]
[1741544021318,52.24351733,127.08,126.97,4.1224]
[1741544021523,52.24351733,127.05,126.97,8.3268]
[1741544021718,38.52,127.04,126.97,8.3268]
[1741544022320,0.05486123,127.02,126.99,0.05701014]
[1741544023611,7.92866123,127.02,126.99,0.05701014]
[1741544024021,0.05486123,127.02,126.99,0.05701014]
[1741544024837,7.92836123,127.02,126.99,0.05701014]
[1741544025323,7.8741,127.01,126.99,0.05701014]
[1741544025521,0.05486123,127.02,126.99,0.05701014]
[1741544025825,7.8788,126.94,126.85,52.24351733]
[1741544026020,38.5,126.94,126.85,56.31071733]
[1741544026219,38.5,126.94,126.85,4.0672]
[1741544026817,38.5,126.94,126.88,0.06025193]
[1741544026818,0.04997172,126.91,126.88,0.06025193]
[1741544027318,0.04997172,126.91,126.88,7.94175193]
[1741544027514,0.04997172,126.91,126.88,0.06025193]
[1741544028024,42.7662,126.99,126.89,52.24351733]
[1741544028418,38.52,126.99,126.95,7.8773]
[1741544028624,38.52,126.99,126.89,52.24351733]
[1741544029222,0.05534105,126.95,126.93,0.05495997]
[1741544029427,0.05534105,126.95,126.94,7.8783]
[1741544029721,38.52,126.99,126.93,0.05495997]
[1741544029722,10.60856141,126.98,126.93,0.05495997]
[1741544029925,10.60856141,126.98,126.96,7.8767]
[1741544030122,10.60856141,126.98,126.92,38.5]
[1741544030319,10.60856141,126.98,126.9,52.24351733]
[1741544030719,0.05927554,126.95,126.93,0.05371802]
[1741544030922,10.60856141,126.98,126.93,0.05371802]
[1741544031123,10.60856141,126.98,126.96,7.8767]
[1741544031429,10.60856141,126.98,126.91,4.0457]
[1741544031617,10.60856141,126.98,126.94,7.8779]
[1741544031821,10.60856141,126.98,126.91,4.0457]
[1741544032020,10.60856141,126.98,126.92,4.1826]
[1741544032219,10.60856141,126.98,126.97,7.8765]
[1741544032622,0.058613,126.99,126.96,0.05870669]
[1741544033726,0.058613,126.99,126.98,7.8758]
[1741544035225,0.058613,126.99,126.96,0.05870669]
[1741544036220,0.058613,126.99,126.97,7.8759]
[1741544036430,0.058613,126.99,126.96,0.05870669]
[1741544036825,1.3e-05,126.99,126.98,7.8758]
[1741544038229,1.3e-05,126.99,126.98,11.8158]
[1741544039433,1.3e-05,126.99,126.98,15.8729]
[1741544039736,1.3e-05,126.99,126.98,7.8758]
[1741544040230,1.3e-05,126.99,126.98,11.8158]
[1741544040627,1.3e-05,126.99,126.98,7.8758]
[1741544042423,1.3e-05,126.99,126.96,0.05870669]
[1741544042926,38.48,127.07,126.96,0.05870669]
[1741544043129,46.4986,127.07,126.95,90.72351733]
[1741544043433,46.4986,127.07,126.98,52.24351733]
[1741544043723,46.4986,127.07,127.03,7.8726]
[1741544043927,46.4986,127.07,126.99,4.1879]
[1741544044129,4.734e-05,127.04,127.02,0.06044807]
[1741544044327,4.734e-05,127.04,127.03,7.8724]
[1741544046636,90.70351733,127.14,127.03,94.64351733]
[1741544046835,291.60568425,127.17,127.03,94.64351733]
[1741544046836,8.2364,127.15,127.06,52.24351733]
[1741544047131,8.2364,127.15,127.06,38.46]
[1741544047937,0.05683614,127.12,127.09,0.05984112]
[1741544048739,46.36443614,127.12,127.09,0.05984112]
[1741544049038,38.49683614,127.12,127.09,0.05984112]
[1741544049638,0.05683614,127.12,127.09,0.05984112]
[1741544049841,0.05683614,127.12,127.11,7.8678]
[1741544050043,0.05683614,127.12,127.09,0.05984112]
[1741544050342,124.47738198,127.25,127.11,52.24351733]
[1741544050343,42.43424566,127.25,127.11,52.24351733]
[1741544050639,38.44,127.23,127.14,52.24351733]
[1741544050833,38.44,127.23,127.15,3.9048]
[1741544051446,0.05615623,127.2,127.18,0.05015148]
[1741544055239,38.4,127.19,127.1,4.1176]
[1741544055437,52.24351733,127.17,127.09,4.1823]
[1741544055641,52.24351733,127.14,127.04,7.981]
[1741544055837,38.4,127.13,127.04,4.0391]
[1741544056437,0.0574366,127.1,127.07,0.0550947]
[1741544056636,38.4,127.21,127.07,52.29861203]
[1741544056835,7.8649,127.16,127.07,52.24351733]
[1741544057142,38.4,127.17,127.05,38.4]
[1741544057546,7.8649,127.16,127.05,90.64351733]
[1741544057740,38.4,127.17,127.05,90.64351733]
[1741544057939,0.05615735,127.12,127.1,0.05783567]
[1741544058135,52.24351733,127.15,127.1,0.05783567]
[1741544058441,0.05612661,127.12,127.04,4.0391]
[1741544058642,7.8686,127.1,127.03,42.5823]
[1741544058843,4.2651,127.11,127.0,297.98]
[1741544059038,52.24351733,127.09,127.0,38.4]
[1741544059253,46.27,127.08,127.01,7.8736]
[1741544059439,38.4,127.08,127.01,7.8736]
[1741544059638,38.4,127.08,126.97,38.4]
[1741544059839,0.05618986,127.06,127.03,0.04952755]
[1741544060043,38.4,127.08,127.03,0.04952755]
[1741544060241,0.06000922,127.06,127.03,0.04952755]
[1741544061240,0.06000922,127.06,126.95,42.6]
[1741544061548,52.24351733,127.06,126.95,4.2]
[1741544061748,52.24351733,127.06,126.98,7.8757]
[1741544061749,7.8719,127.05,126.98,7.8757]
[1741544062045,38.4,127.04,126.95,8.2564]
[1741544062245,7.8728,127.03,126.97,7.876]
[1741544062447,0.05844123,127.01,126.98,0.05659827]
[1741544064148,38.4,127.0,126.98,0.05659827]
[1741544064747,90.64351733,127.0,126.91,8.3001]
[1741544064947,94.70141733,127.0,126.91,8.3001]
[1741544065350,42.4579,127.0,126.91,8.3001]
[1741544065857,52.24351733,127.08,126.95,52.24351733]
[1741544065858,38.4,127.05,126.95,52.24351733]
[1741544066058,38.4,127.08,127.0,52.24351733]
[1741544066259,38.4,127.11,127.01,38.4]
[1741544066448,38.4,127.11,127.03,52.24351733]
[1741544066651,46.2679,127.11,127.05,7.8712]
[1741544066851,38.4,127.11,127.03,52.24351733]
[1741544067059,4.2521,127.13,127.07,0.05227541]
[1741544067060,0.05503463,127.09,127.07,0.05227541]
[1741544067254,0.05503463,127.09,127.08,7.8696]
[1741544067456,0.05503463,127.09,127.07,0.05227541]
[1741544067848,0.05503463,127.09,127.01,4.0727]
[1741544068054,0.05503463,127.09,126.98,8.1548]
[1741544068459,52.24351733,127.08,126.98,8.1548]
[1741544068656,38.4,127.07,126.98,8.1548]
[1741544068959,52.24351733,127.06,126.92,90.64351733]
[1741544069159,0.05271295,127.04,127.01,0.05830793]
[1741544069358,38.4,127.03,126.92,90.64351733]
[1741544069562,38.4,127.03,127.01,0.05234633]
[1741544069563,90.64351733,127.03,127.01,0.05234633]
[1741544069760,4.2902,127.02,126.95,7.8772]
[1741544069962,4.2902,127.02,127.01,0.05152482]
[1741544070157,12.1636,127.02,126.95,7.8777]
[1741544070559,4.2902,127.02,126.95,7.8777]
[1741544070862,7.8741,127.01,126.95,7.8777]
[1741544071062,4.2902,127.02,126.96,7.877]
[1741544071254,0.05287287,126.99,126.97,0.05530665]
[1741544071853,0.05287287,126.99,126.97,7.93170665]
[1741544072561,0.05287287,126.99,126.97,0.05530665]
[1741544072865,38.45287287,126.99,126.97,0.05530665]
[1741544074265,0.05287287,126.99,126.98,7.8758]
[1741544074461,0.05287287,126.99,126.97,0.05530665]
[1741544075465,0.05287287,126.99,126.98,7.8758]
[1741544076266,0.05287287,126.99,126.97,0.05530665]
[1741544077266,38.43287287,126.99,126.97,0.05530665]
[1741544079162,38.43287287,126.99,126.91,3.9583]
[1741544079163,90.6763902,126.99,126.91,3.9583]
[1741544079370,90.6763902,126.99,126.92,7.8794]
[1741544079561,90.62351733,126.99,126.92,7.8794]
[1741544079765,90.62351733,126.99,126.87,46.3744]
[1741544080565,0.05842345,126.94,126.93,7.8789]
[1741544080769,38.38,126.99,126.87,7.9944]
[1741544080964,38.38,126.99,126.95,7.8775]
[1741544081174,0.05512052,126.98,126.88,38.38]
[1741544081482,42.5124,127.03,126.99,7.8746]
[1741544081659,42.5124,127.03,126.93,38.38]
[1741544081863,52.24351733,127.01,126.93,38.38]
[1741544082064,52.24351733,127.01,126.96,7.8766]
[1741544082265,52.24351733,127.01,126.9,90.62351733]
[1741544082774,0.05942234,126.97,126.94,0.05408865]
[1741544082971,38.43942234,126.97,126.94,0.05408865]
[1741544083166,38.43942234,126.97,126.96,7.8771]
[1741544083373,38.38,127.02,126.94,0.05408865]
[1741544083673,38.38,127.02,126.94,8.5737]
[1741544084063,38.38,127.02,126.94,46.9537]
[1741544084574,0.05685666,126.99,126.97,0.05768919]
[1741544084973,0.05685666,126.99,126.98,7.8758]
[1741544085882,82.04313632,127.09,126.97,0.05768919]
[1741544086171,42.4176,127.07,126.95,52.24351733]
[1741544086372,42.4176,127.07,127.0,7.8746]
[1741544086571,52.24351733,127.04,127.0,7.8746]
[1741544086772,38.36,127.03,127.0,7.8746]
[1741544087075,38.40987838,127.03,127.0,7.92931867]
[1741544087277,38.40987838,127.03,127.0,0.05501867]
[1741544088171,38.40987838,127.03,127.0,7.92961867]
[1741544088571,38.40987838,127.03,127.0,0.05501867]
[1741544088766,38.40987838,127.03,126.87,475.5074]
[1741544088971,52.24351733,127.01,126.88,98.58661733]
[1741544089576,56.21191733,127.01,126.88,98.58661733]
[1741544089970,56.21191733,127.01,126.93,0.0519565]
[1741544089971,0.05526614,126.96,126.93,0.0519565]
[1741544090173,0.05526614,126.96,126.88,98.58661733]
[1741544090377,38.36,126.97,126.93,7.93677236]
[1741544090772,0.05527619,126.96,126.93,0.05817236]
[1741544094073,3.99927619,126.96,126.93,0.05817236]
[1741544095183,0.05527619,126.96,126.93,0.05817236]
[1741544096876,38.34,126.95,126.93,0.05817236]
[1741544097987,38.34,126.95,126.93,7.93667236]
[1741544098283,38.34,126.95,126.93,0.05817236]
[1741544098681,38.34,126.95,126.94,7.8783]
[1741544098880,0.05527619,126.96,126.93,0.05817236]
[1741544100291,0.05527619,126.96,126.95,7.8777]
[1741544100481,0.05527619,126.96,126.93,0.05817236]
[1741544102297,201.56276407,127.05,126.93,52.30168969]
[1741544102489,38.34,127.02,126.94,42.5891]
[1741544102691,38.34,127.02,126.95,4.1504]
[1741544102886,38.34,127.02,126.9,90.56351733]
[1741544103086,52.24351733,127.0,126.89,4.2491]
[1741544103294,52.24351733,126.97,126.92,7.8792]
[1741544103492,46.65756251,126.96,126.93,0.05492062]
[1741544103697,52.24351733,126.94,126.85,8.3995]
[1741544103897,8.2779,126.96,126.85,8.3995]
[1741544104098,90.56351733,127.02,126.89,52.24351733]
[1741544104296,38.32,127.02,127.01,7.874]
[1741544104487,4.2543,127.04,126.95,52.24351733]
[1741544104693,38.32,127.06,126.96,8.4194]
[1741544104992,42.43424566,127.07,126.96,8.4194]
[1741544104993,9.715e-05,127.01,127.0,60.11811733]
[1741544105188,9.715e-05,127.01,126.98,52.29657403]
[1741544105392,38.32,127.05,126.96,60.66291733]
[1741544105792,38.32,127.05,126.98,52.24351733]
[1741544105994,0.05599139,127.02,126.99,0.05580046]
[1741544106198,38.32,127.01,126.99,0.05580046]
[1741544106392,0.05599139,127.02,126.99,0.05580046]
[1741544106796,52.29950872,127.02,126.99,0.05580046]
[1741544107190,38.37599139,127.02,126.99,0.05580046]
[1741544108500,0.05599139,127.02,126.99,0.05580046]
[1741544110606,38.3,127.01,126.99,0.05580046]
[1741544111406,0.05599139,127.02,126.99,0.05580046]
[1741544112002,32.2145409,127.02,126.99,0.05580046]
[1741544112303,0.05599139,127.02,126.99,0.05580046]
[1741544113405,10.60856141,127.1,127.0,52.26253235]
[1741544113609,10.60856141,127.1,127.01,46.2679]
[1741544113817,18.47696141,127.1,127.01,54.1416]
[1741544114117,18.47696141,127.1,127.01,46.2679]
[1741544114315,42.43424566,127.08,127.01,46.2679]
[1741544114509,0.05250244,127.07,127.04,0.05853263]
[1741544114706,38.35250244,127.07,127.04,0.05853263]
[1741544115212,52.26253235,127.06,126.96,52.26253235]
[1741544115412,56.50193235,127.06,126.92,38.3]
[1741544115608,7.8746,127.0,126.91,15.8478]
[1741544115808,38.28,126.99,126.91,7.9679]
[1741544116209,38.28,126.99,126.94,7.8778]
[1741544116413,0.05300441,126.96,126.94,0.0525892]
[1741544116817,38.28,127.02,126.93,38.28]
[1741544117014,0.05844466,126.96,126.94,0.0557675]
[1741544117309,38.28,127.02,126.91,7.9679]
[1741544117507,0.05489347,126.96,126.94,0.0545245]
[1741544117704,46.1538,127.02,126.93,60.14113235]
[1741544117910,0.05424865,126.96,126.94,0.05866389]
[1741544118105,38.28,127.02,126.91,7.9679]
[1741544118307,0.05859077,126.96,126.94,0.05922529]
[1741544118517,52.26253235,126.97,126.89,84.83534638]
[1741544118712,0.05148521,126.96,126.94,0.05331427]
[1741544118911,0.05148521,126.96,126.89,84.83534638]
[1741544119709,52.26253235,126.94,126.89,84.83534638]
[1741544119913,46.1594,126.93,126.89,84.83534638]
[1741544120106,38.28,126.93,126.9,0.05392417]
[1741544120313,0.04950971,126.92,126.9,0.05392417]
[1741544120717,7.92920971,126.92,126.9,0.05392417]
[1741544121416,0.04950971,126.92,126.9,0.05392417]
[1741544124017,4.0973,126.97,126.9,0.05392417]
[1741544124217,38.28,126.99,126.9,12.16812417]
[1741544124418,52.26253235,126.98,126.9,0.05392417]
[1741544124619,52.26253235,126.98,126.89,38.28]
[1741544124923,38.28,126.99,126.89,90.54253235]
[1741544125116,0.05544455,126.95,126.92,0.05670788]
[1741544125322,7.8729,127.03,126.94,52.26253235]
[1741544125519,38.28,127.04,126.95,4.0661]
[1741544126225,52.26253235,127.02,126.93,38.28]
[1741544126422,7.8753,126.99,126.92,259.94]
[1741544126725,38.28,127.0,126.92,259.94]
[1741544126921,0.0499981,126.97,126.94,0.05405854]
[1741544127520,7.9267981,126.97,126.94,0.05405854]
[1741544127715,0.0499981,126.97,126.94,0.05405854]
[1741544129124,38.26,126.96,126.94,0.05405854]
[1741544129322,46.1373,126.96,126.94,0.05405854]
[1741544129521,38.26,126.96,126.87,4.0641]
[1741544129722,90.52253235,126.96,126.87,4.0641]
[1741544129917,90.52253235,126.96,126.87,11.9464]
[1741544130117,90.52253235,126.96,126.87,4.0641]
[1741544130625,38.26,126.96,126.91,7.8797]
[1741544130824,0.04995351,126.93,126.9,0.05709345]
[1741544131023,7.92895351,126.93,126.9,0.05709345]
[1741544131230,38.26,126.92,126.9,0.05709345]
[1741544132117,0.04995351,126.93,126.9,0.05709345]
[1741544133525,0.04995351,126.93,126.9,7.93769345]
[1741544133723,0.04995351,126.93,126.9,0.05709345]
[1741544134529,7.92945351,126.93,126.9,0.05709345]
[1741544134727,0.04995351,126.93,126.9,0.05709345]
[1741544135629,0.04995351,126.93,126.83,3.9931]
[1741544135828,36.4690122,126.94,126.83,3.9931]
[1741544136233,32.1932122,126.91,126.81,69.51269969]
[1741544136431,32.1932122,126.88,126.81,65.56649969]
[1741544136932,0.05589712,126.87,126.81,65.56649969]
[1741544137133,32.1932122,126.85,126.81,52.55789969]
[1741544137341,40.0790122,126.82,126.81,29.82519969]
[1741544137634,40.0790122,126.82,126.77,7.53710514]
[1741544137635,74.3932122,126.82,126.77,7.53710514]
[1741544137834,32.1932122,126.79,126.77,7.53710514]
[1741544138033,38.26,126.78,126.77,7.53710514]
[1741544138235,98.61557451,126.78,126.77,7.589516]
[1741544138434,94.66727451,126.78,126.76,117.45108912]
[1741544138637,147.13454902,126.78,126.76,117.45108912]
[1741544138842,147.13454902,126.78,126.75,127.90886953]
[1741544139037,143.19454902,126.78,126.75,127.90886953]
[1741544139241,147.13454902,126.78,126.74,213.18144922]
[1741544139543,52.46727451,126.75,126.74,109.3300251]
[1741544139737,60.35737451,126.75,126.74,109.3300251]
[1741544139930,324.37737451,126.75,126.74,109.3300251]
[1741544140531,316.48727451,126.75,126.7,45.72069165]
[1741544140745,52.46727451,126.71,126.7,45.72069165]
[1741544141137,56.40727451,126.71,126.7,45.72069165]
[1741544141336,64.29987451,126.71,126.7,45.72069165]
[1741544141940,7.8932,126.7,126.69,7.16e-06]
[1741544142147,90.74727451,126.7,126.57,8.2015]
[1741544142440,52.46727451,126.65,126.54,130.08080933]
[1741544142739,38.28,126.64,126.54,130.08080933]
[1741544143140,52.46727451,126.65,126.54,130.08080933]
[1741544143342,0.05671243,126.6,126.58,0.0599454]
[1741544143841,38.28,126.59,126.58,0.0599454]
[1741544144638,7.95078454,126.6,126.58,0.0599454]
[1741544144843,38.3,126.59,126.58,0.0599454]
[1741544145642,238.6349533,126.59,126.58,0.0599454]
[1741544145943,295.04222781,126.59,126.46,52.46727451]
[1741544146245,7.9009,126.58,126.46,56.77277451]
[1741544146442,291.10222781,126.59,126.46,56.77277451]
[1741544146942,0.05885271,126.54,126.51,0.05844598]
[1741544147245,0.05885271,126.54,126.47,52.46727451]
[1741544147246,38.3,126.53,126.47,52.46727451]
[1741544147844,38.3,126.53,126.52,7.9045]
[1741544148237,41.8828395,126.53,126.52,56.42727451]
[1741544148437,90.71949951,126.59,126.52,56.42727451]
[1741544148640,90.71949951,126.59,126.55,52.46727451]
[1741544148841,90.71949951,126.59,126.53,38.32]
[1741544149035,90.71949951,126.59,126.54,52.46727451]
[1741544149236,40.32580635,126.59,126.57,52.46727451]
[1741544149436,9.951e-05,126.59,126.57,90.78727451]
[1741544149635,9.951e-05,126.59,126.58,7.9007]
[1741544149940,0.05405002,126.59,126.58,7.9007]
[1741544150340,0.05395051,126.59,126.58,7.9007]
[1741544150543,0.05395051,126.59,126.57,0.05311759]
[1741544151740,0.05395051,126.59,126.58,7.9007]
[1741544152147,48.64425639,126.66,126.58,316.94727451]
[1741544152355,48.64425639,126.66,126.63,7.8975]
[1741544152643,10.32425639,126.66,126.61,52.46727451]
[1741544152847,10.32425639,126.66,126.64,52.46727451]
[1741544153046,28.29115119,126.68,126.65,52.46727451]
[1741544153244,123.89107679,126.71,126.67,52.46727451]
[1741544153440,258.10640998,126.75,126.66,313.00727451]
[1741544153636,0.05431564,126.68,126.66,260.54]
[1741544153842,1.564e-05,126.68,126.67,7.8951]
[1741544154037,38.32,126.75,126.66,313.00727451]
[1741544154938,38.32,126.75,126.69,7.8934]
[1741544155144,38.32,126.75,126.69,52.46727451]
[1741544155447,0.05425665,126.72,126.69,0.05825324]
[1741544155845,38.3,126.71,126.67,75.08307148]
[1741544156044,3.9576,126.7,126.59,52.46727451]
[1741544156251,7.8947,126.68,126.59,52.46727451]
[1741544156549,38.3,126.67,126.59,52.46727451]
[1741544157249,82.04313632,126.77,126.65,52.46727451]
[1741544157448,86.00073632,126.77,126.65,52.46727451]
[1741544158046,3.9576,126.77,126.7,7.8932]
[1741544158444,0.05262732,126.75,126.72,0.05252664]
[1741544158642,38.3,126.74,126.72,0.05252664]
[1741544159046,0.05262732,126.75,126.72,0.05252664]
[1741544159248,0.05262732,126.75,126.72,7.94452664]
[1741544159445,0.05262732,126.75,126.72,0.05252664]
[1741544159646,7.8908,126.74,126.72,0.05252664]
[1741544159945,0.05262732,126.75,126.72,0.05252664]
[1741544160547,52.51990183,126.75,126.72,0.05252664]
[1741544160748,52.51990183,126.75,126.66,3.971]
[1741544160950,7.8931,126.71,126.66,3.971]
[1741544161152,38.3,126.7,126.59,38.3]
[1741544161353,7.8951,126.67,126.62,7.8981]
[1741544161555,38.3,126.66,126.6,3.971]
[1741544161943,82.04313632,126.75,126.63,52.46727451]
[1741544162147,8.2221,126.76,126.66,52.46727451]
[1741544162349,8.2221,126.76,126.64,42.5214]
[1741544162652,0.06063882,126.72,126.7,0.05890569]
[1741544163554,38.36063882,126.72,126.7,0.05890569]
[1741544164147,38.3,126.77,126.7,0.05890569]
[1741544164353,38.3,126.79,126.7,4.26670569]
[1741544164549,95.58346572,126.83,126.7,8.3438]
[1741544164744,38.3,126.82,126.72,52.46727451]
[1741544164945,38.3,126.81,126.72,52.46727451]
[1741544165151,38.3,126.82,126.72,90.76727451]
[1741544165552,0.05154607,126.78,126.77,7.8884]
[1741544165753,38.3,126.84,126.77,38.3]
[1741544165959,38.3,126.87,126.78,52.46727451]
[1741544166153,38.3,126.87,126.78,3.9855]
[1741544166458,86.32783632,126.89,126.75,52.46727451]
[1741544166648,38.28,126.88,126.78,52.46727451]
[1741544166857,0.05323162,126.83,126.81,0.05162848]
[1741544167052,0.05323162,126.83,126.81,7.93762848]
[1741544167247,46.1622,126.88,126.81,7.93762848]
[1741544167248,38.28,126.88,126.81,0.05162848]
[1741544167448,52.46727451,126.87,126.81,0.05162848]
[1741544167647,0.058069,126.83,126.81,0.05162848]
[1741544167955,38.28,126.82,126.81,0.05162848]
[1741544168151,38.28,126.82,126.73,8.3222]
[1741544168655,7.8878,126.79,126.73,7.8912]
[1741544168850,52.46727451,126.81,126.7,4.1408]
[1741544169056,52.46727451,126.78,126.67,3.9728]
[1741544169255,52.46727451,126.78,126.67,11.8678]
[1741544169256,52.46727451,126.75,126.67,11.8678]
[1741544169554,52.46727451,126.75,126.71,0.05037988]
[1741544169754,7.95016074,126.72,126.71,0.05037988]
[1741544169958,90.80543525,126.72,126.62,3.9728]
[1741544170154,52.46727451,126.69,126.59,260.4]
[1741544170354,7.8964,126.65,126.59,268.2999]
[1741544170549,52.46727451,126.69,126.55,8.1136]
[1741544170550,38.28,126.64,126.55,8.1136]
[1741544170955,46.1771,126.64,126.55,8.1136]
[1741544171161,0.05789345,126.61,126.58,0.05625914]
[1741544171556,38.28,126.6,126.58,0.05625914]
[1741544171754,0.05789345,126.61,126.58,0.05625914]
[1741544172158,38.28,126.72,126.59,90.74727451]
[1741544172561,52.46727451,126.7,126.57,52.46727451]
[1741544172855,52.46727451,126.7,126.56,298.76]
[1741544173049,7.8962,126.66,126.58,7.9006]
[1741544173250,0.05263976,126.64,126.62,0.05564954]
[1741544173756,0.05568935,126.64,126.62,0.05497491]
[1741544174860,52.52296386,126.64,126.55,4.1408]
[1741544175361,46.1765,126.65,126.55,4.1408]
[1741544175557,38.28,126.65,126.55,4.1408]
[1741544175761,7.9002,126.59,126.54,3.9152]
[1741544175961,38.28,126.58,126.54,3.9152]
[1741544176356,38.28,126.58,126.55,0.05304974]
[1741544176661,0.05120619,126.57,126.55,0.05304974]
[1741544176861,0.05120619,126.57,126.55,7.95544974]
[1741544177062,0.05120619,126.57,126.55,0.05304974]
[1741544177459,26.69558753,126.57,126.55,0.05304974]
[1741544177756,26.69558753,126.57,126.5,264.559]
[1741544178462,38.3,126.56,126.5,264.559]
[1741544178659,38.3,126.56,126.5,260.5]
[1741544178858,38.3,126.56,126.52,0.05405904]
[1741544179053,7.9049,126.52,126.47,7.9075]
[1741544179256,46.2049,126.52,126.47,7.9075]
[1741544179462,38.3,126.52,126.44,4.2134]
[1741544179663,7.9072,126.48,126.43,7.91]
[1741544179866,38.3,126.48,126.41,4.2134]
[1741544180258,0.05285909,126.46,126.41,7.9112]
[1741544180458,0.05285909,126.46,126.38,260.56]
[1741544180657,0.05285909,126.46,126.36,52.46727451]
[1741544180862,79.11165585,126.47,126.34,8.4822]
[1741544181162,7.9118,126.41,126.36,7.9144]
[1741544181355,38.3,126.4,126.34,8.4822]
[1741544181558,0.05736176,126.4,126.37,0.05666477]
[1741544181859,0.05736176,126.4,126.39,7.9126]
[1741544182060,38.3,126.43,126.39,7.9126]